bitfinex-derivatives/quotes_SOLF0:USTF0_20220109
["timestamp","ask_amount","ask_price","bid_price","bid_amount"]
[1641721777795,0.81448597,139.33,139.28,4.07761791]
[1641721778095,0.81448597,139.33,139.3,4.07761791]
[1641721778496,7.17849323,139.39,139.3,4.0]
[1641721778695,55.32958,139.4,139.31,4.0]
[1641721779597,27.66479,139.4,139.31,4.0]
[1641721779797,27.66479,139.4,139.32,4.0]
[1641721779997,27.66479,139.4,139.32,8.07665003]
[1641721780397,27.66479,139.4,139.32,4.0]
[1641721780597,27.66479,139.4,139.32,31.66479]
[1641721780797,27.66479,139.4,139.33,4.0]
[1641721780998,7.17694764,139.42,139.33,13.82865003]
[1641721781398,7.17694764,139.42,139.34,4.0]
[1641721781802,7.17694764,139.42,139.34,8.07665003]
[1641721782401,7.17694764,139.42,139.35,4.07665003]
[1641721784204,7.17694764,139.42,139.34,4.07665003]
[1641721784705,27.66479,139.4,139.33,4.07665003]
[1641721790811,7.17694764,139.42,139.33,4.07665003]
[1641721791012,18.15694764,139.42,139.33,11.58965003]
[1641721791412,18.15694764,139.42,139.34,4.07665003]
[1641721791911,10.98,139.42,139.35,4.0]
[1641721792112,10.98,139.42,139.34,4.07665003]
[1641721792312,10.98,139.42,139.36,4.07665003]
[1641721792512,10.98,139.42,139.36,11.12065003]
[1641721792712,10.98,139.42,139.36,7.044]
[1641721793214,10.98,139.42,139.37,4.07665003]
[1641721794014,10.98,139.42,139.33,43.29085003]
[1641721794617,10.98,139.42,139.34,4.07665003]
[1641721794817,10.98,139.42,139.34,10.98665003]
[1641721795015,10.98,139.42,139.34,14.98665003]
[1641721795216,27.66479,139.44,139.34,14.98665003]
[1641721795618,27.66479,139.44,139.35,4.07665003]
[1641721796618,27.66479,139.44,139.35,31.74144003]
[1641721797221,7.1761751,139.43,139.36,4.07665003]
[1641721797519,27.66479,139.44,139.36,4.07665003]
[1641721799321,31.66479,139.44,139.36,4.07665003]
[1641721799523,27.66479,139.44,139.36,4.07665003]
[1641721799723,2.39652359,139.43,139.36,4.07665003]
[1641721803423,6.39652359,139.43,139.36,4.07665003]
[1641721803623,12.19752359,139.43,139.36,4.07665003]
[1641721804023,2.39652359,139.42,139.36,4.07665003]
[1641721804425,4.0,139.4,139.36,4.07665003]
[1641721804624,27.66479,139.37,139.34,4.07665003]
[1641721804825,36.22279,139.37,139.34,4.07665003]
[1641721805226,36.22279,139.37,139.31,15.22225836]
[1641721805825,36.22279,139.37,139.32,4.07700684]
[1641721806725,27.66479,139.34,139.32,4.07700684]
[1641721806925,27.66479,139.34,139.3,4.07700684]
[1641721807326,34.45679,139.34,139.3,4.07700684]
[1641721809829,4.0,139.33,139.3,4.07700684]
[1641721810430,4.0,139.32,139.25,35.9826]
[1641721810630,41.63760287,139.34,139.25,35.9826]
[1641721810830,27.66479,139.28,139.26,4.07864109]
[1641721811028,35.81179,139.28,139.26,4.07864109]
[1641721811629,35.81179,139.28,139.24,4.07864109]
[1641721812029,35.81179,139.28,139.22,4.07864109]
[1641721812430,39.81179,139.28,139.22,4.07864109]
[1641721812633,39.81179,139.28,139.22,14.60102995]
[1641721813232,39.81179,139.28,139.23,4.07864109]
[1641721813532,4.0,139.26,139.23,4.07864109]
[1641721813936,4.0,139.26,139.22,4.07864109]
[1641721814433,4.0,139.26,139.19,4.07864109]
[1641721814639,4.0,139.26,139.18,27.66479]
[1641721814936,27.66479,139.25,139.19,10.48763126]
[1641721815335,31.66479,139.25,139.19,10.48763126]
[1641721815534,36.67179,139.25,139.19,10.48763126]
[1641721815734,4.0,139.24,139.19,10.48763126]
[1641721816235,27.66479,139.25,139.17,10.48763126]
[1641721816434,27.66479,139.25,139.17,17.41363126]
[1641721817133,27.66479,139.28,139.17,10.926]
[1641721818333,27.66479,139.28,139.17,21.39180981]
[1641721818736,27.66479,139.28,139.19,27.66479]
[1641721819135,27.66479,139.28,139.19,31.66479]
[1641721819336,27.66479,139.28,139.19,27.66479]
[1641721821039,27.66479,139.31,139.21,4.0]
[1641721821238,34.84715012,139.31,139.21,4.0]
[1641721822042,34.84715012,139.31,139.23,4.0]
[1641721822240,34.84715012,139.31,139.23,7.333]
[1641721823441,34.84715012,139.31,139.22,32.6716]
[1641721823842,7.183134,139.3,139.22,32.6716]
[1641721824543,13.586134,139.3,139.22,32.6716]
[1641721824743,27.66479,139.27,139.22,32.6716]
[1641721824943,36.46879,139.27,139.19,55.32958]
[1641721826147,8.804,139.27,139.19,55.32958]
[1641721826346,7.183134,139.3,139.19,59.32958]
[1641721826747,7.183134,139.3,139.19,55.32958]
[1641721827047,7.183134,139.3,139.19,59.32958]
[1641721828048,27.66479,139.31,139.22,4.0]
[1641721828448,27.66479,139.31,139.23,4.0]
[1641721828747,27.66479,139.31,139.24,27.66479]
[1641721832952,27.66479,139.31,139.26,4.0]
[1641721833152,115.86938726,139.35,139.26,7.76]
[1641721833451,45.78508726,139.35,139.26,7.76]
[1641721834552,2.3980815,139.34,139.26,7.76]
[1641721836953,2.3980815,139.34,139.24,94.11409]
[1641721837653,2.3980815,139.34,139.24,32.9072]
[1641721838854,2.3980815,139.34,139.25,27.66479]
[1641721839258,2.3980815,139.34,139.25,38.19247194]
[1641721840256,2.3980815,139.34,139.25,27.66479]
[1641721841055,2.3980815,139.34,139.25,42.91771884]
[1641721841257,17.65101034,139.34,139.25,53.45270906]
[1641721843759,4.0,139.33,139.25,53.45270906]
[1641721843960,21.65101034,139.34,139.25,53.45270906]
[1641721844160,17.65101034,139.34,139.25,42.91771884]
[1641721844363,15.25292884,139.33,139.25,27.66479]
[1641721844761,15.25292884,139.33,139.3,4.0]
[1641721844960,15.25292884,139.33,139.3,10.175]
[1641721845160,2.3980815,139.34,139.3,10.175]
[1641721845360,22.43007633,139.36,139.31,4.0]
[1641721846160,7.17978173,139.36,139.31,4.0]
[1641721846860,7.17978173,139.36,139.31,31.66479]
[1641721847760,7.17978173,139.36,139.31,27.66479]
[1641721851465,7.17978173,139.36,139.29,35.7803]
[1641721852965,7.17978173,139.36,139.32,27.66479]
[1641721854570,7.17978173,139.36,139.29,35.7803]
[1641721858870,34.84457173,139.36,139.29,35.7803]
[1641721861573,34.84457173,139.36,139.28,27.66479]
[1641721861774,4.0,139.34,139.24,1.794]
[1641721861974,15.82381287,139.34,139.24,33.6845]
[1641721862576,8.643,139.34,139.24,33.6845]
[1641721862977,8.643,139.34,139.26,27.66479]
[1641721863176,34.5027,139.35,139.26,27.66479]
[1641721864576,34.5027,139.35,139.25,10.52091789]
[1641721864778,47.3767,139.35,139.25,10.52091789]
[1641721864978,27.66479,139.33,139.25,10.52091789]
[1641721870587,34.5027,139.35,139.25,10.52091789]
[1641721870888,34.5027,139.35,139.27,27.66479]
[1641721871585,34.5027,139.35,139.27,35.32779]
[1641721873591,0.8279002,139.34,139.28,4.07861383]
[1641721874992,0.8279002,139.35,139.28,4.07861383]
[1641721875393,0.8279002,139.35,139.28,39.37121383]
[1641721875793,16.07706821,139.35,139.28,39.37121383]
[1641721876295,0.8279002,139.34,139.28,35.2926]
[1641721879797,0.8279002,139.35,139.28,35.2926]
[1641721880001,4.8279002,139.35,139.28,35.2926]
[1641721880198,0.8279002,139.35,139.26,15.24916801]
[1641721880599,13.2679002,139.35,139.26,15.24916801]
[1641721880800,7.18132855,139.33,139.25,33.8487]
[1641721881001,27.66479,139.3,139.25,33.8487]
[1641721881200,7.18132855,139.33,139.25,33.8487]
[1641721881698,0.8279002,139.32,139.25,33.8487]
[1641721881900,23.86506821,139.32,139.25,33.8487]
[1641721882400,0.8279002,139.31,139.25,33.8487]
[1641721883003,28.4926902,139.31,139.24,27.66479]
[1641721883201,32.4926902,139.31,139.24,27.66479]
[1641721883601,0.8279002,139.3,139.24,27.66479]
[1641721885805,2.4018171,139.29,139.24,27.66479]
[1641721886103,0.8279002,139.28,139.24,27.66479]
[1641721888010,0.8279002,139.3,139.24,27.66479]
[1641721888611,2.3996268,139.29,139.24,27.66479]
[1641721888811,10.6326268,139.29,139.24,27.66479]
[1641721889210,0.8279002,139.28,139.24,27.66479]
[1641721889610,4.8279002,139.28,139.21,27.66479]
[1641721889810,0.8279002,139.28,139.21,27.66479]
[1641721890513,0.8279002,139.28,139.22,4.08014928]
[1641721891715,7.18468226,139.27,139.22,4.08014928]
[1641721891917,4.0,139.25,139.18,15.24916801]
[1641721892115,13.009,139.25,139.18,15.24916801]
[1641721892517,4.8279002,139.24,139.19,4.08115146]
[1641721893116,27.66479,139.2,139.17,4.08115146]
[1641721893317,34.32979,139.2,139.17,4.08115146]
[1641721893717,0.8279002,139.19,139.17,4.08115146]
[1641721896824,0.8279002,139.21,139.17,4.08115146]
[1641721899124,27.66479,139.19,139.17,4.08115146]
[1641721899323,35.19579,139.19,139.13,36.96355146]
[1641721899924,0.8279002,139.18,139.14,4.08115146]
[1641721903930,0.8279002,139.21,139.14,4.08115146]
[1641721909038,0.8279002,139.21,139.14,8.08115146]
[1641721909335,0.8279002,139.21,139.13,48.13156801]
[1641721909336,28.4926902,139.25,139.16,27.66479]
[1641721909536,28.4926902,139.25,139.17,33.9721]
[1641721909942,0.8279002,139.24,139.18,4.08115146]
[1641721911242,27.66479,139.22,139.18,4.08115146]
[1641721911944,27.66479,139.22,139.13,49.95166801]
[1641721911945,0.8279002,139.21,139.14,4.08115146]
[1641721912142,7.9699002,139.21,139.14,39.39635146]
[1641721912943,0.8279002,139.2,139.15,4.08115146]
[1641721914543,0.8279002,139.2,139.14,35.3152]
[1641721915145,0.8279002,139.21,139.15,4.08236929]
[1641721920752,0.8279002,139.21,139.14,35.3152]
[1641721920953,9.9309002,139.21,139.14,35.3152]
[1641721921153,27.66479,139.18,139.14,35.3152]
[1641721921355,27.66479,139.18,139.12,15.24916801]
[1641721921553,0.8279002,139.17,139.15,4.08231127]
[1641721922156,7.809,139.17,139.13,19.33147928]
[1641721922555,0.8279002,139.16,139.14,4.08231127]
[1641721923555,0.8279002,139.16,139.13,4.08231127]
[1641721925458,0.8279002,139.16,139.12,4.08231127]
[1641721926660,4.8279002,139.16,139.12,4.08231127]
[1641721927062,0.8279002,139.15,139.12,4.08231127]
[1641721927261,28.4926902,139.15,139.12,4.08231127]
[1641721927665,0.8279002,139.14,139.12,4.08231127]
[1641721927865,7.5709002,139.14,139.12,4.08231127]
[1641721928265,11.5709002,139.14,139.12,4.08231127]
[1641721928466,0.8279002,139.13,139.11,15.24916801]
[1641721928666,4.8279002,139.13,139.11,15.24916801]
[1641721928866,4.0,139.12,139.11,15.24916801]
[1641721929167,32.4926902,139.12,139.08,25.79953806]
[1641721929368,28.4926902,139.12,139.08,25.79953806]
[1641721929569,0.8279002,139.11,139.08,25.79953806]
[1641721929767,9.9719002,139.11,139.08,15.24916801]
[1641721929967,9.9719002,139.11,139.07,33.296]
[1641721930169,9.9719002,139.11,139.09,4.08418219]
[1641721930569,0.8279002,139.1,139.08,4.08418219]
[1641721931670,0.8279002,139.1,139.07,33.296]
[1641721931870,0.8279002,139.1,139.04,42.91395801]
[1641721932072,0.8279002,139.1,139.04,76.15605801]
[1641721932469,0.8279002,139.1,139.05,4.08446398]
[1641721936575,0.8279002,139.11,139.05,4.08446398]
[1641721939180,0.8279002,139.11,139.06,4.0]
[1641721939378,50.10328904,139.18,139.09,27.66479]
[1641721939579,0.82795763,139.15,139.09,36.40479]
[1641721939980,34.85412103,139.18,139.09,36.40479]
[1641721940780,0.81670436,139.17,139.1,4.0835218]
[1641721940981,12.35970436,139.17,139.1,4.0835218]
[1641721941180,8.35970436,139.17,139.1,4.0835218]
[1641721941384,27.66479,139.15,139.1,4.0835218]
[1641721941580,27.66479,139.15,139.07,4.0835218]
[1641721941982,0.81670436,139.14,139.06,4.0835218]
[1641721942182,9.97870436,139.14,139.06,4.0835218]
[1641721942784,0.81670436,139.13,139.06,19.33268981]
[1641721942985,0.81670436,139.13,139.06,52.94178981]
[1641721943184,0.81670436,139.13,139.07,4.0835218]
[1641721943383,27.66479,139.12,139.07,4.0835218]
[1641721943984,0.81670436,139.11,139.07,4.0835218]
[1641721944185,9.01670436,139.11,139.07,4.0835218]
[1641721945088,0.81670436,139.1,139.07,4.0835218]
[1641721946188,0.81670436,139.11,139.07,4.0835218]
[1641721946991,0.81670436,139.14,139.07,4.0835218]
[1641721947394,0.81670436,139.14,139.07,31.7483118]
[1641721947994,0.81670436,139.14,139.08,4.0835218]
[1641721950293,0.81670436,139.14,139.08,13.0065218]
[1641721950895,0.81670436,139.15,139.09,4.0835218]
[1641721951792,27.66479,139.19,139.12,4.0]
[1641721951993,15.24916801,139.2,139.13,4.0]
[1641721952193,15.24916801,139.2,139.14,4.0]
[1641721952393,15.24916801,139.2,139.13,4.0]
[1641721952794,15.24916801,139.22,139.13,4.0]
[1641721953294,0.8164378,139.21,139.14,31.74697902]
[1641721953793,0.8164378,139.21,139.15,4.08218902]
[1641721953994,0.8164378,139.21,139.15,12.21618902]
[1641721954495,0.8164378,139.21,139.16,4.08218902]
[1641721955298,0.8164378,139.21,139.17,27.66479]
[1641721955696,0.8164378,139.23,139.18,4.08218902]
[1641721956396,0.8164378,139.23,139.18,13.48318902]
[1641721956597,0.8164378,139.26,139.18,13.48318902]
[1641721956796,0.8164378,139.26,139.18,17.48318902]
[1641721956998,0.8164378,139.26,139.19,4.08218902]
[1641721957296,0.8164378,139.26,139.2,27.66479]
[1641721957697,0.8164378,139.26,139.21,4.08218902]
[1641721957900,0.8164378,139.26,139.21,11.76918902]
[1641721958498,0.8164378,139.26,139.21,7.687]
[1641721958698,0.8164378,139.27,139.21,7.687]
[1641721959302,0.8164378,139.27,139.23,27.66479]
[1641721959999,7.183134,139.3,139.23,27.66479]
[1641721960000,0.8164378,139.29,139.23,27.66479]
[1641721960202,0.8164378,139.26,139.23,27.66479]
[1641721960604,0.8164378,139.29,139.23,27.66479]
[1641721961204,0.8164378,139.29,139.21,42.3959]
[1641721961405,0.8164378,139.29,139.21,40.6009]
[1641721961905,4.0,139.27,139.21,40.6009]
[1641721962203,8.197,139.27,139.21,40.6009]
[1641721962405,0.8164378,139.26,139.21,40.6009]
[1641721962604,0.8164378,139.26,139.21,7.687]
[1641721962803,0.8164378,139.26,139.17,27.66479]
[1641721963203,0.8164378,139.26,139.18,4.0815101]
[1641721963405,27.66479,139.25,139.18,4.0815101]
[1641721964007,0.8164378,139.24,139.18,4.0815101]
[1641721965409,4.0,139.23,139.18,4.0815101]
[1641721965808,4.8164378,139.22,139.11,15.24916801]
[1641721966107,4.8164378,139.22,139.12,32.6674]
[1641721966310,0.8164378,139.21,139.12,36.74984122]
[1641721966507,9.7174378,139.21,139.12,36.74984122]
[1641721966711,9.7174378,139.21,139.13,4.08244122]
[1641721966910,20.90496026,139.21,139.13,4.08244122]
[1641721967108,0.8164378,139.2,139.13,4.08244122]
[1641721967509,27.66479,139.18,139.13,4.08244122]
[1641721967709,34.58479,139.18,139.13,4.08244122]
[1641721968111,0.8164378,139.17,139.13,4.08244122]
[1641721973023,0.8164378,139.17,139.1,38.67254122]
[1641721973422,0.8164378,139.17,139.11,4.08244122]
[1641721975524,28.4812278,139.17,139.11,4.08244122]
[1641721975827,0.8164378,139.16,139.11,4.08244122]
[1641721976724,9.1714378,139.16,139.11,4.08244122]
[1641721977124,0.8164378,139.15,139.11,4.08244122]
[1641721979530,4.8164378,139.15,139.11,4.08244122]
[1641721980130,0.8164378,139.14,139.1,4.08244122]
[1641721981431,27.66479,139.14,139.1,4.08244122]
[1641721981830,0.8164378,139.13,139.1,4.08244122]
[1641721986640,8.4684378,139.13,139.1,4.08244122]
[1641721986841,8.4684378,139.13,139.09,27.66479]
[1641721987340,0.8164378,139.12,139.09,27.66479]
[1641721987840,0.8164378,139.12,139.1,4.08380755]
[1641721989043,0.8164378,139.13,139.1,4.08380755]
[1641721992045,0.8164378,139.13,139.09,27.66479]
[1641721992445,0.8164378,139.13,139.1,4.08393479]
[1641721993750,4.0,139.11,139.05,15.24916801]
[1641721993947,7.19346833,139.09,139.05,15.24916801]
[1641721994147,4.0,139.06,139.03,15.24916801]
[1641721994348,12.059,139.06,139.03,15.24916801]
[1641721994749,8.059,139.06,139.03,15.24916801]
[1641721994953,12.059,139.06,139.03,15.24916801]
[1641721995248,1.15302135,139.05,139.03,15.24916801]
[1641721995448,4.0,139.04,139.0,40.08934292]
[1641721995647,11.19683339,139.03,139.0,40.08934292]
[1641721995849,15.11285474,139.03,138.98,15.27065521]
[1641721996453,1.15302135,139.02,138.98,15.27065521]
[1641721996750,1.15302135,139.01,138.94,75.62484292]
[1641721997149,1.15302135,139.01,138.94,35.5355]
[1641721997349,1.15302135,139.0,138.95,4.08767767]
[1641721997550,27.66479,138.96,138.95,4.08767767]
[1641721997749,36.88379,138.96,138.95,4.08767767]
[1641721998152,38.03681135,138.96,138.9,4.08767767]
[1641721998551,1.15302135,138.95,138.9,4.08767767]
[1641721999052,1.15302135,138.94,138.9,4.08767767]
[1641721999454,36.88379,138.96,138.9,4.08767767]
[1641721999651,27.66479,138.96,138.9,4.08767767]
[1641721999853,0.81764788,138.95,138.9,4.08767767]
[1641722001952,27.66479,138.98,138.94,4.0]
[1641722002152,7.19683339,139.03,138.94,10.065]
[1641722002752,7.19683339,139.03,138.94,6.065]
[1641722002953,7.19683339,139.03,138.94,10.065]
[1641722003154,7.19683339,139.03,138.94,6.065]
[1641722003354,11.19683339,139.03,138.94,6.065]
[1641722003554,27.66479,139.0,138.95,4.08785866]
[1641722003956,1.32241759,138.99,138.95,4.08785866]
[1641722004555,7.20097933,138.96,138.92,1.798]
[1641722004754,8.237,138.96,138.87,35.84]
[1641722004955,7.20253529,138.93,138.87,35.84]
[1641722005254,17.71053529,138.93,138.88,4.08948553]
[1641722005454,4.0,138.92,138.88,4.08948553]
[1641722005654,55.32958,138.89,138.87,35.84]
[1641722005858,64.36558,138.89,138.83,40.08934292]
[1641722006058,5.32241759,138.88,138.79,60.97520665]
[1641722006356,5.32241759,138.88,138.78,29.46479]
[1641722006557,4.0,138.86,138.8,4.09055738]
[1641722006763,4.0,138.85,138.8,4.09055738]
[1641722006959,4.0,138.84,138.79,4.09055738]
[1641722007359,5.32241759,138.83,138.76,4.09055738]
[1641722007559,27.66479,138.8,138.76,4.09055738]
[1641722007759,37.04979,138.8,138.76,4.09055738]
[1641722008059,37.04979,138.8,138.73,4.09055738]
[1641722008260,1.32241759,138.79,138.77,4.09055738]
[1641722008659,1.32241759,138.79,138.73,4.0]
[1641722008861,1.32241759,138.79,138.72,4.09055738]
[1641722009061,1.32241759,138.79,138.74,4.09055738]
[1641722009461,1.32241759,138.79,138.72,4.0]
[1641722009660,1.32241759,138.79,138.72,27.66479]
[1641722009860,1.32241759,138.82,138.73,4.09055738]
[1641722010060,1.32241759,138.82,138.73,8.09055738]
[1641722010662,1.32241759,138.82,138.74,4.0]
[1641722011064,1.32241759,138.82,138.74,8.09055738]
[1641722011262,1.32241759,138.82,138.77,4.0]
[1641722011467,1.759e-05,138.82,138.8,4.0]
[1641722011665,1.759e-05,138.82,138.81,4.0]
[1641722011865,27.66480759,138.88,138.81,4.09055738]
[1641722012364,27.66479,138.88,138.81,4.09055738]
[1641722012564,3.39684016,138.87,138.81,4.09055738]
[1641722012964,12.72684016,138.87,138.81,4.09055738]
[1641722013164,14.76,138.93,138.81,4.09055738]
[1641722013165,4.0,138.98,138.83,11.19890577]
[1641722013465,4.0,139.0,138.88,4.0]
[1641722013664,34.86265943,139.01,138.91,27.66479]
[1641722013865,27.66479,139.01,138.91,35.35879]
[1641722014066,40.08934292,139.03,138.92,4.0]
[1641722014566,11.19502105,139.06,138.91,42.55381105]
[1641722014866,7.19735137,139.02,138.93,4.08816987]
[1641722015064,4.0,139.08,138.92,8.08816987]
[1641722015267,11.1952799,139.06,138.92,4.08816987]
[1641722015465,11.1952799,139.06,138.93,4.08816987]
[1641722015664,27.66479,139.03,138.94,27.66479]
[1641722017066,31.66479,139.03,138.94,27.66479]
[1641722018569,38.27979,139.03,138.94,27.66479]
[1641722018973,45.47662339,139.03,138.94,27.66479]
[1641722019570,4.0,139.01,138.94,27.66479]
[1641722020271,41.47662339,139.03,138.94,27.66479]
[1641722020570,41.47662339,139.03,138.95,4.0]
[1641722020771,7.19553877,139.05,138.94,27.66479]
[1641722020970,7.19553877,139.05,138.96,4.0]
[1641722021170,7.19553877,139.05,138.96,8.08742082]
[1641722021372,4.0,139.04,138.95,4.08742082]
[1641722021570,17.68953877,139.05,138.95,4.08742082]
[1641722021770,27.66479,139.04,138.95,4.08742082]
[1641722022370,27.66479,139.04,138.95,8.08742082]
[1641722022670,7.19553877,139.05,138.96,4.08742082]
[1641722023674,7.19553877,139.05,138.97,27.66479]
[1641722025677,27.66479,139.03,138.97,27.66479]
[1641722026578,7.19553877,139.05,138.97,27.66479]
[1641722026983,15.16943263,139.08,138.98,4.0]
[1641722027283,15.16943263,139.08,138.99,4.0]
[1641722027482,15.16943263,139.08,139.0,4.0]
[1641722027682,15.16943263,139.08,139.02,27.66479]
[1641722027882,2.39117284,139.09,139.02,27.66479]
[1641722028682,2.38360612,139.08,139.02,27.66479]
[1641722028882,2.38360612,139.08,139.02,31.66479]
[1641722029382,2.38360612,139.08,139.02,27.66479]
[1641722029582,2.38360612,139.11,139.02,27.66479]
[1641722030989,4.0,139.1,139.02,27.66479]
[1641722031189,11.671,139.1,139.02,27.66479]
[1641722031691,2.38360612,139.09,139.02,27.66479]
[1641722032890,6.38360612,139.09,138.97,27.66479]
[1641722033292,2.38360612,139.08,138.98,4.08694835]
[1641722033491,6.38360612,139.08,138.98,4.08694835]
[1641722033690,27.66479,139.06,138.98,4.08694835]
[1641722033891,4.0,139.05,138.98,4.08694835]
[1641722034095,9.57914489,139.05,138.96,60.44599]
[1641722034592,2.38360612,139.04,138.96,60.44599]
[1641722034993,2.38360612,139.05,138.97,4.08731231]
[1641722037595,6.38360612,139.05,138.97,4.08731231]
[1641722037794,27.66479,138.99,138.97,4.08731231]
[1641722037997,36.72579,138.99,138.97,4.08731231]
[1641722038195,36.72579,138.99,138.9,68.79852877]
[1641722038596,2.38360612,138.98,138.9,72.79852877]
[1641722038795,2.38360612,138.98,138.91,4.0]
[1641722038997,2.38360612,138.98,138.91,4.08830123]
[1641722039397,2.38360612,138.98,138.91,8.08830123]
[1641722039897,2.38360612,138.98,138.92,4.08830123]
[1641722040101,2.38360612,138.98,138.92,8.08830123]
[1641722040399,6.12e-06,138.98,138.93,11.19372707]
[1641722040699,15.16943263,139.05,138.94,4.0]
[1641722040999,2.39627957,139.06,138.96,4.0]
[1641722041402,2.39627957,139.06,138.97,4.0]
[1641722041598,2.39627957,139.06,138.96,19.03217491]
[1641722041799,15.16943263,139.09,138.99,27.66479]
[1641722041800,2.39627957,139.08,138.99,27.66479]
[1641722042000,2.14644246,139.05,138.99,27.66479]
[1641722042400,2.14644246,139.07,139.0,4.08660337]
[1641722042602,6.001,139.05,139.0,4.08660337]
[1641722042800,6.001,139.05,138.97,60.26889]
[1641722043201,6.001,139.05,138.98,4.08716188]
[1641722043401,2.14644246,139.04,138.98,4.08716188]
[1641722044101,2.14644246,139.06,138.98,4.08716188]
[1641722044503,2.14644246,139.06,138.97,32.6041]
[1641722044703,2.14644246,139.06,138.95,42.83422263]
[1641722045006,17.57488356,139.05,138.94,33.1781]
[1641722045205,4.0,139.04,138.94,33.1781]
[1641722045407,6.14644246,139.04,138.95,4.08796462]
[1641722045806,27.66479,139.03,138.95,4.08796462]
[1641722046007,29.81123246,139.03,138.95,4.08796462]
[1641722046407,2.14644246,139.02,138.95,4.08796462]
[1641722046806,2.14644246,139.01,138.95,4.08796462]
[1641722047007,4.55189339,139.01,138.95,4.08796462]
[1641722047407,2.14644246,139.0,138.95,4.08796462]
[1641722047910,2.14644246,138.99,138.95,4.08796462]
[1641722048510,2.14644246,138.98,138.95,4.08796462]
[1641722048910,2.14644246,138.97,138.95,4.08796462]
[1641722049312,2.14644246,138.96,138.95,4.08796462]
[1641722051019,10.17444246,138.96,138.94,27.66479]
[1641722051217,10.17444246,138.96,138.92,42.83422263]
[1641722051416,10.17444246,138.96,138.92,15.16943263]
[1641722051617,2.14644246,138.95,138.92,15.16943263]
[1641722051822,27.66479,138.93,138.92,15.16943263]
[1641722052021,35.78579,138.93,138.88,15.16943263]
[1641722052418,2.14644246,138.92,138.89,4.08985297]
[1641722052817,2.14644246,138.91,138.89,4.08985297]
[1641722053216,2.14644246,138.9,138.89,4.08985297]
[1641722053617,2.14644246,138.9,138.86,4.08985297]
[1641722054020,2.14644246,138.89,138.86,4.08985297]
[1641722054418,2.14644246,138.88,138.85,4.08985297]
[1641722054619,9.35079389,138.88,138.85,4.08985297]
[1641722054819,11.20538963,138.86,138.81,40.08934292]
[1641722055020,4.0,138.83,138.81,55.3413182]
[1641722055221,6.122,138.83,138.81,25.7856145]
[1641722055624,7.20772668,138.82,138.81,25.7856145]
[1641722055822,66.53730668,138.82,138.81,25.7856145]
[1641722056022,65.02814528,138.82,138.81,25.7856145]
[1641722056425,65.02814528,138.82,138.81,10.53363922]
[1641722056822,65.02814528,138.82,138.71,1.8]
[1641722056823,37.36335528,138.82,138.71,1.8]
[1641722057021,37.36335528,138.82,138.7,1.801]
[1641722057224,2.4908386,138.81,138.72,4.09272232]
[1641722057522,2.4908386,138.81,138.73,4.0]
[1641722057722,2.4908386,138.8,138.73,4.0]
[1641722057922,2.4908386,138.8,138.74,27.66479]
[1641722058125,2.4908386,138.79,138.74,31.75751232]
[1641722058523,2.4908386,138.78,138.75,4.09272232]
[1641722058922,34.87251668,138.82,138.75,4.09272232]
[1641722059322,1.67273769,138.81,138.75,4.09272232]
[1641722059926,27.66479,138.79,138.71,4.09272232]
[1641722060124,34.87407556,138.79,138.71,4.09272232]
[1641722060330,34.87407556,138.79,138.68,1.801]
[1641722060331,4.0,138.76,138.68,1.801]
[1641722060525,7.2111051,138.75,138.64,4.0]
[1641722060727,8.88384279,138.75,138.69,4.09408844]
[1641722061225,7.424,138.76,138.66,4.0]
[1641722061226,1.67273769,138.74,138.66,4.0]
[1641722061626,1.67273769,138.75,138.67,4.09408844]
[1641722062026,29.33752769,138.76,138.67,31.75887844]
[1641722062225,29.33752769,138.76,138.69,4.0]
[1641722062425,1.67273769,138.76,138.69,8.702]
[1641722062625,1.67273769,138.75,138.69,8.702]
[1641722062826,1.67273769,138.75,138.74,4.0]
[1641722063026,62.36880674,138.85,138.74,11.44]
[1641722063027,40.74380885,138.85,138.74,11.44]
[1641722063228,11.20824623,138.81,138.74,7.44]
[1641722063526,7.20980534,138.78,138.68,4.0]
[1641722063726,7.20980534,138.78,138.67,31.66479]
[1641722063927,28.83402415,138.83,138.72,27.66479]
[1641722063928,27.66479,138.81,138.72,27.66479]
[1641722064327,2.40149161,138.8,138.73,4.09361118]
[1641722065130,4.0,138.76,138.73,4.09361118]